bitfinex/quotes_SOLUSD_20260113
["timestamp","ask_amount","ask_price","bid_price","bid_amount"]
[1768347886811,0.11334866,144.69,144.61,0.68321108]
[1768347887015,0.11334866,144.69,144.64,15.94064248]
[1768347887634,0.11334866,144.69,144.65,15.94064248]
[1768347888427,20.72,144.79,144.69,0.68321108]
[1768347888633,41.43646408,144.8,144.72,15.94064248]
[1768347888806,41.43646408,144.8,144.64,15.94064248]
[1768347888807,0.69186294,144.78,144.73,15.94064248]
[1768347889107,0.67637896,144.77,144.73,15.94064248]
[1768347889519,0.67637896,144.77,144.67,12.58]
[1768347889720,0.67637896,144.77,144.73,15.94064248]
[1768347889923,7.59969373,144.76,144.73,15.94064248]
[1768347890521,7.59969373,144.76,144.67,12.58]
[1768347890522,7.59969373,144.76,144.72,15.94064248]
[1768347890832,0.67653226,144.75,144.65,0.68321108]
[1768347891132,0.69155634,144.74,144.7,15.94064248]
[1768347891435,16.61732498,144.73,144.65,0.68321108]
[1768347891743,0.69126182,144.7,144.65,16.62385356]
[1768347892033,6.91085003,144.7,144.66,16.62385356]
[1768347892333,24.87968321,144.7,144.61,0.68321108]
[1768347892536,7.60255813,144.7,144.66,15.94064248]
[1768347892734,6.91085003,144.7,144.66,0.68321108]
[1768347892922,6.91085003,144.7,144.66,16.62385356]
[1768347893324,0.67653226,144.69,144.62,0.68321108]
[1768347893534,0.67653226,144.69,144.65,15.94064248]
[1768347893735,24.18797511,144.7,144.66,16.62385356]
[1768347894434,0.69186294,144.69,144.64,15.94064248]
[1768347895634,0.69186294,144.69,144.65,15.94064248]
[1768347895936,6.91180536,144.68,144.6,10.49855625]
[1768347896145,6.91180536,144.68,144.65,15.94064248]
[1768347896437,6.91180536,144.68,144.64,16.62385356]
[1768347897011,6.91180536,144.68,144.65,15.94064248]
[1768347898524,6.91132766,144.69,144.66,15.94064248]
[1768347899612,7.6031906,144.69,144.64,0.2167149]
[1768347899813,24.88150976,144.69,144.65,15.94064248]
[1768347900316,13.27186294,144.68,144.61,0.2167149]
[1768347900515,6.91276095,144.66,144.63,15.94064248]
[1768347901524,6.91276095,144.66,144.61,16.15735738]
[1768347902038,15.94064248,144.62,144.57,0.2167149]
[1768347902230,16.63250542,144.62,144.57,0.2167149]
[1768347902447,0.69186294,144.79,144.64,6.6801107]
[1768347902631,0.69186294,144.76,144.7,15.94064248]
[1768347902839,0.69186294,144.76,144.72,15.94064248]
[1768347903334,0.69186294,144.76,144.71,15.94064248]
[1768347903642,0.69186294,144.75,144.7,15.94064248]
[1768347903835,0.69186294,144.75,144.71,15.94064248]
[1768347904430,12.58,144.76,144.72,15.94064248]
[1768347904741,20.18027697,144.76,144.64,22.62075318]
[1768347905039,0.69959035,144.75,144.7,15.94064248]
[1768347905430,0.69959035,144.73,144.68,15.94064248]
[1768347905642,0.69959035,144.75,144.7,15.94064248]
[1768347906337,0.69959035,144.75,144.71,15.94064248]
[1768347906536,6.90894016,144.74,144.7,15.94064248]
[1768347906723,6.90894016,144.74,144.69,15.94064248]
[1768347907448,0.69959035,144.73,144.67,15.94064248]
[1768347907631,0.69959035,144.73,144.68,15.94064248]
[1768347908619,12.58,144.72,144.68,15.94064248]
[1768347908820,17.27235042,144.74,144.68,15.94064248]
[1768347909021,0.69959035,144.74,144.71,15.94064248]
[1768347909232,0.69959035,144.75,144.7,15.94064248]
[1768347909430,0.69959035,144.74,144.69,15.94064248]
[1768347909837,0.69959035,144.74,144.64,35.20075318]
[1768347910037,0.69959035,144.74,144.69,15.94064248]
[1768347910244,0.69959035,144.74,144.7,15.94064248]
[1768347910432,0.69959035,144.74,144.71,15.94064248]
[1768347910626,7.60757598,144.76,144.73,15.94064248]
[1768347910832,7.60757598,144.76,144.73,15.59246057]
[1768347911541,12.58,144.77,144.67,53.2739745]
[1768347911733,12.58,144.77,144.74,4e-08]
[1768347911932,12.58,144.77,144.73,15.94064248]
[1768347912327,19.48764325,144.77,144.73,15.94064248]
[1768347912531,12.58,144.77,144.74,15.94064248]
[1768347912933,0.69959035,144.76,144.74,15.94064248]
[1768347913136,12.58,144.77,144.74,15.94064248]
[1768347913727,12.58,144.77,144.72,15.94064248]
[1768347914246,12.58,144.77,144.67,19.2601107]
[1768347914426,12.58,144.77,144.72,15.94064248]
[1768347915446,0.69959035,144.76,144.73,15.94064248]
[1768347915645,34.52532409,144.83,144.67,30.9534734]
[1768347915646,4.3010611,144.85,144.75,15.94064248]
[1768347915839,13.27959035,144.84,144.78,15.94064248]
[1768347916027,0.69959035,144.83,144.78,15.94064248]
[1768347916351,12.58,144.84,144.8,15.94064248]
[1768347916645,0.69959035,144.83,144.79,15.94064248]
[1768347916833,12.58,144.84,144.79,15.94064248]
[1768347917340,19.48424368,144.84,144.79,15.94064248]
[1768347917648,20.16721076,144.84,144.79,15.94064248]
[1768347918035,0.68296708,144.8,144.67,34.0138638]
[1768347918252,12.58,144.79,144.73,15.94064248]
[1768347918449,12.58,144.79,144.74,15.94064248]
[1768347918836,12.58,144.79,144.71,6.6801107]
[1768347919044,12.58,144.79,144.77,15.94064248]
[1768347919431,12.58,144.79,144.78,15.94064248]
[1768347919748,0.68296708,144.82,144.72,15.94064248]
[1768347919749,13.26296708,144.82,144.72,15.94064248]
[1768347919940,0.68296708,144.81,144.76,15.94064248]
[1768347920253,0.68296708,144.81,144.72,6.6801107]
[1768347920432,0.68296708,144.81,144.75,15.94064248]
[1768347920632,0.68296708,144.8,144.74,15.94064248]
[1768347921148,7.58934986,144.8,144.74,15.94064248]
[1768347921343,0.68296708,144.79,144.74,15.94064248]
[1768347921536,13.26296708,144.78,144.73,15.94064248]
[1768347922639,13.26296708,144.78,144.72,15.94064248]
[1768347922957,0.68296708,144.77,144.71,15.94064248]
[1768347923149,0.68296708,144.76,144.71,15.94064248]
[1768347923348,0.68296708,144.75,144.61,119.8]
[1768347923658,0.68296708,144.73,144.68,15.94064248]
[1768347923833,0.68296708,144.73,144.69,15.94064248]
[1768347924149,0.68296708,144.73,144.68,15.94064248]
[1768347924356,12.58,144.74,144.67,6.6801107]
[1768347924537,12.58,144.76,144.73,15.94064248]
[1768347924744,12.58,144.76,144.74,15.94064248]
[1768347924932,12.58,144.76,144.73,15.94064248]
[1768347925129,12.58,144.76,144.75,15.94064248]
[1768347925953,17.2645601,144.81,144.75,15.94064248]
[1768347925954,0.68296708,144.81,144.75,15.94064248]
[1768347926159,0.68296708,144.81,144.76,15.94064248]
[1768347926160,12.58,144.8,144.76,15.94064248]
[1768347927060,12.58,144.8,144.77,15.94064248]
[1768347927358,12.58,144.8,144.78,15.94064248]
[1768347927540,12.58,144.8,144.72,15.94064248]
[1768347927740,7.58689921,144.85,144.79,15.94064248]
[1768347927961,12.58,144.84,144.8,15.94064248]
[1768347928429,12.58,144.84,144.83,15.94064248]
[1768347928634,12.58,144.84,144.82,15.94064248]
[1768347928849,12.58,144.84,144.77,6.6801107]
[1768347929159,12.58,144.84,144.83,15.94064248]
[1768347930039,12.58,144.84,144.82,15.94064248]
[1768347930246,12.58,144.84,144.76,6.6801107]
[1768347930447,12.58,144.84,144.82,15.94064248]
[1768347931654,12.58,144.84,144.83,15.94064248]
[1768347932633,0.88296708,144.9,144.83,15.94064248]
[1768347932837,13.46296708,144.9,144.86,15.94064248]
[1768347933141,20.36434466,144.9,144.86,15.94064248]
[1768347933834,0.68296708,144.89,144.84,15.94064248]
[1768347935140,0.68296708,144.89,144.85,15.94064248]
[1768347935962,0.65724393,144.88,144.8,28.52064248]
[1768347936158,0.65724393,144.88,144.86,15.94064248]
[1768347936539,0.65724393,144.88,144.85,15.94064248]
[1768347936741,0.65724393,144.88,144.8,12.58]
[1768347936963,0.65724393,144.88,144.85,15.94064248]
[1768347937339,0.65724393,144.88,144.86,9.79021847]
[1768347939765,0.65724393,144.88,144.79,19.2601107]
[1768347940062,0.65724393,144.88,144.86,9.79021847]
[1768347940267,0.65724393,144.87,144.85,9.79021847]
[1768347941253,0.65724393,144.87,144.84,9.79021847]
[1768347941763,0.65724393,144.85,144.74,19.71466651]
[1768347941958,0.65724393,144.89,144.77,15.0]
[1768347942159,0.65724393,144.89,144.84,9.79021847]
[1768347942359,7.10133142,144.9,144.81,9.79021847]
[1768347942360,0.65724393,144.87,144.81,9.79021847]
[1768347942551,0.65724393,144.86,144.8,9.79021847]
[1768347942869,0.65724393,144.83,144.77,9.79021847]
[1768347943173,0.65724393,144.8,144.74,9.79021847]
[1768347943348,0.65724393,144.78,144.74,9.79021847]
[1768347943550,0.65724393,144.78,144.73,9.79021847]
[1768347943865,7.56475239,144.77,144.73,9.79021847]
[1768347944167,0.65724393,144.77,144.73,9.79021847]
[1768347945647,0.65724393,144.77,144.74,9.79021847]
[1768347947159,0.65724393,144.77,144.68,6.6801107]
[1768347947357,0.65724393,144.77,144.73,9.79021847]
[1768347947664,7.56485296,144.77,144.73,9.79021847]
[1768347948745,7.56485296,144.77,144.71,9.79021847]
[1768347948746,0.65724393,144.76,144.71,9.79021847]
[1768347949075,0.65724393,144.74,144.71,9.79021847]
[1768347949266,0.59724395,144.74,144.71,9.79021847]
[1768347949670,0.56724396,144.74,144.71,9.79021847]
[1768347949876,0.40444104,144.74,144.71,9.79021847]
[1768347950057,0.40444104,144.74,144.66,0.25280289]
[1768347950255,0.40444104,144.74,144.69,9.79021847]
[1768347950674,10.19465951,144.74,144.68,10.04302136]
[1768347951373,17.10384953,144.74,144.68,10.04302136]
[1768347951550,9.79021847,144.7,144.65,0.25280289]
[1768347951874,23.0274624,144.7,144.64,10.04302136]
[1768347952072,13.23724393,144.7,144.65,10.04302136]
[1768347953149,0.65724393,144.69,144.63,0.25280289]
[1768347953351,0.65724393,144.69,144.64,10.04302136]
[1768347953757,0.65724393,144.69,144.65,9.79021847]
[1768347954273,0.65724393,144.72,144.66,9.79021847]
[1768347954574,6.6801107,144.8,144.67,0.25280289]
[1768347954757,10.4474624,144.75,144.69,9.79021847]
[1768347954986,12.58,144.74,144.7,0.25280289]
[1768347955365,19.48904229,144.74,144.7,0.25280289]
[1768347955572,29.93650469,144.74,144.68,10.04302136]
[1768347956877,0.65724393,144.71,144.66,9.79021847]
[1768347957085,12.58,144.7,144.66,9.79021847]
[1768347957879,12.58,144.7,144.65,0.25280289]
[1768347958065,12.58,144.7,144.66,9.79021847]
[1768347958266,0.65724393,144.69,144.66,9.79021847]
[1768347958460,0.62724391,144.69,144.67,9.79021847]
[1768347958766,12.58,144.7,144.67,9.79021847]
[1768347958969,12.58,144.7,144.65,0.28280291]
[1768347959174,12.58,144.7,144.66,10.07302138]
[1768347959569,12.58,144.7,144.67,9.79021847]
[1768347959874,12.58,144.7,144.66,0.28280291]
[1768347960081,12.58,144.7,144.66,10.07302138]
[1768347960859,20.14811036,144.7,144.63,6.96291361]
[1768347961174,29.93832883,144.7,144.64,9.79021847]
[1768347961381,0.65724393,144.69,144.64,9.79021847]
[1768347961857,0.65724393,144.69,144.63,0.28280291]
[1768347962054,0.65724393,144.69,144.64,9.79021847]
[1768347962254,0.65724393,144.68,144.62,9.79021847]
[1768347962489,0.65724393,144.67,144.62,9.79021847]
[1768347962680,12.58,144.66,144.62,9.79021847]
[1768347962881,12.58,144.66,144.61,0.28280291]
[1768347963075,12.58,144.66,144.62,9.79021847]
[1768347963873,12.58,144.66,144.61,0.28280291]
[1768347964080,12.58,144.66,144.63,9.79021847]
[1768347964457,12.54999997,144.66,144.63,9.79021847]
[1768347964882,0.65724393,144.67,144.63,9.79021847]
[1768347965084,12.58,144.66,144.63,9.79021847]
[1768347965982,12.58,144.66,144.62,9.79021847]
[1768347966282,12.58,144.66,144.59,47.55795941]
[1768347966283,0.70096626,144.65,144.63,9.79021847]
[1768347966486,12.58,144.66,144.63,9.79021847]
[1768347966678,12.58,144.65,144.64,9.79021847]
[1768347966879,17.27504364,144.72,144.64,9.79021847]
[1768347967069,9.79021847,144.72,144.66,9.79021847]
[1768347967376,9.79021847,144.71,144.65,9.79021847]
[1768347967988,12.58,144.7,144.65,9.79021847]
[1768347968186,12.58,144.69,144.65,9.79021847]
[1768347968569,10.49118473,144.67,144.59,52.48142]
[1768347968771,0.70096626,144.65,144.59,40.87784871]
[1768347969085,12.58,144.64,144.6,9.79021847]
[1768347969481,13.28096626,144.64,144.59,40.87784871]
[1768347969689,23.07118473,144.64,144.59,40.87784871]
[1768347970260,6.91419484,144.63,144.59,40.87784871]
[1768347970761,7.6151611,144.63,144.59,40.87784871]
[1768347970964,7.6151611,144.63,144.59,1e-08]
[1768347970965,0.70096626,144.6,144.59,1e-08]
[1768347971197,13.28096626,144.6,144.59,1e-08]
[1768347972391,20.19659558,144.6,144.59,1e-08]
[1768347972589,0.70096626,144.59,144.54,9.89021847]
[1768347972974,0.70096626,144.58,144.54,0.1]
[1768347973179,13.28096626,144.57,144.54,0.1]
[1768347973490,0.70096626,144.56,144.48,3.0892263]
[1768347973790,10.49118473,144.53,144.48,2.6318336]
[1768347974002,13.28096626,144.52,144.48,2.6318336]
[1768347974205,0.70096626,144.51,144.48,2.6318336]
[1768347974895,0.70096626,144.5,144.48,2.6318336]
[1768347975082,0.69395659,144.48,144.41,0.6750305]
[1768347975480,0.69402598,144.46,144.39,0.6750305]
[1768347975685,12.58,144.45,144.41,9.79021847]
[1768347975984,12.53007883,144.45,144.42,9.79021847]
[1768347976184,12.53007883,144.45,144.4,0.6750305]
[1768347976371,19.45316861,144.45,144.4,0.6750305]
[1768347976570,19.45316861,144.45,144.4,10.46524897]
[1768347976780,12.53007883,144.45,144.41,9.79021847]
[1768347977395,12.6,144.48,144.45,0.67319252]
[1768347977593,12.6,144.48,144.46,9.79021847]
[1768347977893,12.6,144.48,144.45,10.46341099]
[1768347978276,0.66964885,144.57,144.48,0.67319252]
[1768347978477,0.66964885,144.55,144.51,9.79021847]
[1768347978804,0.66964885,144.55,144.5,10.46341099]
[1768347979373,6.91850006,144.54,144.5,10.46341099]
[1768347979670,6.91850006,144.54,144.46,9.79021847]
[1768347979671,0.66964885,144.51,144.46,9.79021847]
[1768347979899,13.26964885,144.51,144.46,9.79021847]
[1768347980391,23.05986732,144.51,144.45,10.46341099]
[1768347980592,10.45986732,144.5,144.44,9.79021847]
[1768347980995,9.79021847,144.49,144.43,10.46341099]
[1768347981373,9.79021847,144.49,144.44,9.79021847]
[1768347981374,6.92089417,144.49,144.44,9.79021847]
[1768347981581,6.92089417,144.49,144.45,10.46341099]
[1768347981776,6.92043005,144.5,144.45,10.46341099]
[1768347981982,13.26964885,144.51,144.46,9.79021847]
[1768347982900,10.45986732,144.5,144.45,0.67319252]
[1768347983205,46.61004706,144.51,144.45,10.46341099]
[1768347984202,47.27969591,144.51,144.45,10.46341099]
[1768347985021,29.97985507,144.51,144.45,10.46341099]
[1768347985501,10.45986732,144.5,144.45,0.67319252]
[1768347986287,17.38064051,144.5,144.45,0.67319252]
[1768347987111,10.45986732,144.48,144.42,9.79021847]
[1768347987279,12.6,144.5,144.43,0.67319252]
[1768347987481,13.26964885,144.51,144.46,0.67319252]
[1768347987686,0.66964885,144.5,144.46,9.79021847]
[1768347988204,0.57693252,144.48,144.44,9.79021847]
[1768347988403,12.6,144.48,144.44,10.46341099]
[1768347988617,12.6,144.48,144.45,0.67319252]
[1768347989615,19.52142231,144.48,144.45,0.67319252]
[1768347989812,9.79021847,144.51,144.45,9.79021847]
[1768347990286,12.6,144.5,144.45,9.79021847]
[1768347990487,12.6,144.5,144.46,9.79021847]
[1768347992809,12.6,144.5,144.46,0.67319252]
[1768347993199,19.52076631,144.5,144.46,0.67319252]
[1768347993400,12.6,144.5,144.48,0.67319252]
[1768347995988,12.6,144.5,144.48,10.46341099]
[1768347996603,12.6,144.5,144.46,10.46220087]
[1768347996991,12.6,144.5,144.47,0.6719824]
[1768347998501,12.6,144.5,144.45,0.6719824]
[1768347998502,19.52049159,144.5,144.45,0.6719824]
[1768347998700,29.31071006,144.5,144.45,0.6719824]
[1768347998910,46.61174812,144.5,144.45,0.6719824]
[1768347999402,19.52049159,144.5,144.45,16.67159934]
[1768347999609,19.52043427,144.5,144.46,16.67159934]
[1768347999805,12.6,144.5,144.46,16.67159934]
[1768348000409,12.6,144.5,144.47,0.6719824]
[1768348001023,11.875,144.5,144.49,16.67159934]
[1768348001314,0.65399161,144.53,144.49,15.99961694]
[1768348001522,7.57263799,144.54,144.49,15.99961694]
[1768348001714,0.65399161,144.53,144.49,15.99961694]
[1768348002012,0.65399161,144.53,144.5,15.99961694]
[1768348002725,0.65399161,144.53,144.49,6.92080707]
[1768348002897,0.65399161,144.55,144.52,15.99961694]
[1768348003101,20.17113042,144.57,144.52,15.99961694]
[1768348003327,20.17113042,144.57,144.51,15.99961694]
[1768348003701,7.57113042,144.57,144.51,15.99961694]
[1768348004613,0.65399161,144.56,144.51,15.99961694]
[1768348004811,0.65399161,144.56,144.51,22.91923432]
[1768348005019,0.65399161,144.56,144.51,35.51923432]
[1768348006714,7.57156068,144.56,144.51,19.51961738]
[1768348007423,7.57164723,144.56,144.51,19.51961738]
[1768348007603,0.65399161,144.56,144.51,19.51961738]
[1768348009225,0.65399161,144.56,144.51,35.51923432]
[1768348010111,0.65399161,144.56,144.51,6.91961738]
[1768348010430,0.65399161,144.54,144.49,19.52069282]
[1768348010934,0.65399161,144.54,144.5,6.92039951]
[1768348011906,0.65399161,144.54,144.51,6.91988554]
[1768348012226,0.65399161,144.54,144.5,6.92041522]
[1768348012614,0.65399161,144.54,144.5,22.92003216]
[1768348012811,0.65399161,144.54,144.5,6.92041522]
[1768348013313,0.65399161,144.56,144.51,15.99961694]
[1768348013712,0.65399161,144.56,144.47,6.6801107]
[1768348013916,0.65399161,144.49,144.4,12.6]
[1768348014120,0.65399161,144.51,144.43,15.99961694]
[1768348014307,0.65399161,144.51,144.45,15.99961694]
[1768348014712,0.65399161,144.51,144.44,12.6]
[1768348014713,23.57363344,144.51,144.44,15.99961694]
[1768348015015,23.57363344,144.51,144.44,28.59961694]
[1768348015215,0.65399161,144.5,144.44,28.59961694]
[1768348016225,0.65399161,144.5,144.45,6.92281066]
[1768348016432,0.65399161,144.5,144.45,22.9224276]
[1768348017323,0.65399161,144.55,144.48,15.99961694]
[1768348017541,0.65399161,144.55,144.49,15.99961694]
[1768348017733,0.65399161,144.54,144.48,28.59961694]
[1768348018318,7.57263217,144.54,144.48,35.52061271]
[1768348018622,0.65399161,144.53,144.46,17.30512532]
[1768348018846,0.65399161,144.53,144.47,15.99961694]
[1768348019728,0.65399161,144.52,144.47,6.92176138]
[1768348020312,0.65399161,144.51,144.44,33.30738999]
[1768348020634,0.65399161,144.48,144.42,6.92396383]
[1768348021023,16.65360855,144.48,144.43,6.92376513]
[1768348022034,23.57507283,144.48,144.42,6.92424871]
[1768348022430,0.65399161,144.47,144.42,6.92424871]
[1768348023533,0.58479161,144.47,144.42,24.2348705]
[1768348024840,0.58479161,144.47,144.42,6.92424871]
[1768348025047,0.58479161,144.47,144.43,12.6]
[1768348025236,15.99961694,144.51,144.43,28.66881694]
[1768348025744,0.71775635,144.49,144.43,12.6692]
[1768348025941,0.71775635,144.49,144.42,24.2348705]
[1768348026146,0.71775635,144.48,144.43,12.6]
[1768348026327,0.71775635,144.48,144.44,6.92328994]
[1768348027649,7.63801748,144.51,144.45,0.0692]
[1768348027824,0.71775635,144.51,144.44,6.99248994]
[1768348028030,0.71775635,144.49,144.44,6.92328994]
[1768348029134,0.71775635,144.48,144.44,6.92328994]
[1768348030033,0.71775635,144.48,144.43,6.9237693]
[1768348031155,0.71775635,144.47,144.42,19.52406079]
[1768348032145,0.71775635,144.47,144.42,6.92406079]
[1768348032635,0.71775635,144.46,144.42,6.92406079]
[1768348033031,0.71775635,144.46,144.41,6.92455154]
[1768348033260,0.71775635,144.45,144.39,12.6]
[1768348033555,6.92191845,144.47,144.41,0.0692]
[1768348033766,0.71775635,144.49,144.44,15.99961694]
[1768348033937,0.71775635,144.49,144.45,15.99961694]
[1768348034662,7.6378932,144.51,144.45,15.99961694]
[1768348034855,7.6378932,144.51,144.46,15.99961694]
[1768348034856,0.71775635,144.51,144.46,15.99961694]
[1768348035749,0.71775635,144.51,144.45,0.0692]
[1768348036063,0.71775635,144.51,144.47,15.99961694]
[1768348036240,0.71775635,144.53,144.48,22.99019014]
[1768348036964,0.71775635,144.53,144.48,40.29362314]
[1768348037259,0.71775635,144.53,144.49,15.99961694]
[1768348037757,0.70329737,144.54,144.49,15.99961694]
[1768348038145,0.70329737,144.54,144.49,22.92005078]
[1768348038641,0.70329737,144.54,144.49,6.92043384]
[1768348038972,7.62182402,144.54,144.49,6.92043384]
[1768348040570,7.62182402,144.54,144.48,16.06881694]
[1768348040759,0.70329737,144.53,144.48,16.06881694]
[1768348041433,0.70329737,144.53,144.46,40.22777698]
[1768348041434,0.70329737,144.52,144.46,40.22777698]
[1768348041634,0.70329737,144.52,144.46,22.92194838]
[1768348042062,0.70329737,144.54,144.49,15.99961694]
[1768348042255,0.70329737,144.54,144.5,15.99961694]
[1768348043444,0.70329737,144.54,144.51,6.91993633]
[1768348044535,0.70329737,144.58,144.53,6.45488713]
[1768348044850,0.70329737,144.58,144.54,6.45488713]
[1768348045252,0.70329737,144.58,144.51,24.28897717]
[1768348045574,0.70329737,144.57,144.52,15.975734]
[1768348045743,0.70329737,144.57,144.52,22.89488155]
[1768348046061,0.70329737,144.57,144.51,15.975734]
[1768348047570,0.70329737,144.56,144.51,22.89565063]
[1768348047744,0.70329737,144.56,144.52,15.975734]
[1768348048650,0.70329737,144.56,144.53,15.975734]
[1768348049967,0.70329737,144.56,144.5,17.30047132]
[1768348050166,0.70329737,144.56,144.52,15.975734]
[1768348050365,0.70329737,144.56,144.52,22.89514683]
[1768348050865,0.70329737,144.56,144.52,15.975734]
[1768348051081,0.70329737,144.59,144.54,15.975734]
[1768348051458,0.70329737,144.59,144.53,15.975734]
[1768348051764,0.70329737,144.59,144.55,15.975734]
[1768348051961,0.70329737,144.59,144.54,15.975734]
[1768348052162,0.70329737,144.58,144.54,22.89421965]
[1768348052370,0.70329737,144.58,144.54,6.91848565]
[1768348052629,0.70329737,144.6,144.56,15.975734]
[1768348052756,0.70329737,144.6,144.55,15.975734]
[1768348053155,0.70329737,144.59,144.53,6.91881296]
[1768348053453,0.70329737,144.59,144.53,35.49454696]
[1768348053655,0.70329737,144.59,144.53,22.89454696]
[1768348054073,0.70329737,144.59,144.54,6.91842656]
[1768348054253,0.70329737,144.58,144.54,6.91842656]
[1768348054780,0.70329737,144.62,144.55,15.975734]
[1768348055076,0.2,144.69,144.53,22.8946466]
[1768348055077,0.68932506,144.59,144.53,22.8946466]
[1768348055376,0.68932506,144.57,144.52,6.91927205]
[1768348055778,0.68932506,144.57,144.52,22.89500605]
[1768348055991,0.68932506,144.56,144.49,28.575734]
[1768348056160,0.68932506,144.62,144.53,13.5988984]
[1768348056367,0.68932506,144.6,144.56,15.975734]
[1768348056570,0.68932506,144.58,144.52,19.51926844]
[1768348056769,0.68932506,144.57,144.51,6.91956221]
[1768348057084,0.68932506,144.57,144.51,15.975734]
[1768348057270,0.68932506,144.57,144.53,22.89461304]
[1768348057885,0.68932506,144.57,144.53,6.91887904]
[1768348058993,12.6,144.62,144.53,6.91887904]
[1768348058994,0.68932506,144.64,144.56,15.975734]
[1768348059198,0.68932506,144.64,144.53,24.9082238]
[1768348059499,0.68932506,144.61,144.54,28.575734]
[1768348059801,0.68932506,144.61,144.54,12.6]
[1768348059968,0.68932506,144.61,144.55,15.975734]
[1768348060372,7.60448119,144.61,144.56,6.91754288]
[1768348060594,0.68932506,144.61,144.56,22.89327688]
[1768348061368,0.68932506,144.61,144.56,16.74630654]
[1768348062200,7.60373113,144.63,144.57,9.82876366]
[1768348062409,0.68932506,144.62,144.56,9.82876366]
[1768348062583,0.68932506,144.61,144.56,12.6]
[1768348062894,0.68932506,144.61,144.55,12.6]
[1768348063310,0.68932506,144.61,144.55,0.0692]
[1768348063488,17.43352153,144.61,144.55,0.0692]
[1768348063686,7.60475787,144.61,144.55,0.0692]
[1768348063884,7.60475787,144.61,144.55,9.89796366]
[1768348064683,0.68932506,144.6,144.55,16.7467851]
[1768348064883,0.68932506,144.6,144.55,16.8159851]
[1768348065300,0.68932506,144.6,144.55,11.1157588]
[1768348066502,0.68932506,144.6,144.55,6.98722144]
[1768348066703,7.60497511,144.6,144.55,11.1157588]
[1768348066903,7.60497511,144.6,144.55,6.98722144]
[1768348067086,0.68932506,144.59,144.53,6.98770586]
[1768348067287,0.68932506,144.56,144.5,4.12853736]
[1768348067479,0.68932506,144.56,144.5,23.64883488]
[1768348067680,0.68932506,144.56,144.5,19.52029752]
[1768348067880,0.68932506,144.56,144.5,19.58949752]
[1768348068204,0.68932506,144.56,144.51,6.91983716]
[1768348069198,0.68932506,144.57,144.51,0.0692]
[1768348069496,0.68932506,144.56,144.51,4.19773736]
[1768348069695,0.68932506,144.56,144.51,0.0692]
[1768348070299,0.68932506,144.56,144.5,40.94980489]
[1768348070489,0.68932506,144.56,144.5,41.01900489]
[1768348071699,7.60699305,144.56,144.5,41.01900489]
[1768348072298,0.68932506,144.55,144.5,40.94980489]
[1768348072798,0.68932506,144.56,144.51,0.0692]
[1768348073405,0.68932506,144.56,144.51,4.19773736]
[1768348073603,0.68932506,144.56,144.51,11.04804889]
[1768348074199,0.68932506,144.56,144.52,4.12853736]
[1768348075904,0.68932506,144.55,144.51,11.04804889]
[1768348076209,0.68932506,144.55,144.51,19.51951153]
[1768348077609,0.68932506,144.53,144.48,19.52106595]
[1768348077908,0.68932506,144.53,144.49,6.92086443]
[1768348079210,0.68932506,144.57,144.5,0.0692]
[1768348079414,0.68932506,144.56,144.51,0.0692]
[1768348079710,0.68932506,144.55,144.49,28.42083723]
[1768348080135,0.68932506,144.55,144.5,4.19773736]
[1768348080485,0.68932506,144.55,144.5,0.0692]
[1768348081114,0.68932506,144.54,144.49,19.52086443]
[1768348081614,7.60783454,144.54,144.49,19.52086443]
[1768348081802,0.68932506,144.53,144.49,19.52086443]
[1768348082627,0.68932506,144.55,144.49,36.89229987]
[1768348082792,0.68932506,144.55,144.49,28.42083723]
[1768348083197,0.68932506,144.53,144.48,19.5213732]
[1768348084704,0.68932506,144.53,144.48,19.5905732]
[1768348085089,0.68932506,144.53,144.48,23.64991056]
[1768348085507,0.68932506,144.53,144.48,23.71911056]
[1768348085913,0.68932506,144.53,144.48,6.9905732]
[1768348086215,0.68932506,144.53,144.48,11.11911056]
[1768348086413,0.69471868,144.55,144.49,4.19773736]
[1768348086621,0.69471868,144.55,144.5,6.98961522]
[1768348086917,0.69471868,144.55,144.5,6.92041522]
[1768348087098,0.69471868,144.55,144.5,23.64895258]
[1768348087298,0.69471868,144.58,144.52,0.0692]
[1768348087595,0.69471868,144.58,144.53,12.6]
[1768348088206,0.69471868,144.58,144.54,4.12853736]
[1768348088504,0.69471868,144.57,144.53,12.6]
[1768348088810,0.69471868,144.57,144.54,4.12853736]
[1768348089008,0.69471868,144.57,144.54,2.67853736]
[1768348089225,6.91678356,144.58,144.55,0.70727248]
[1768348089599,6.91628331,144.59,144.55,0.70727248]
[1768348090519,7.61100199,144.59,144.55,0.70727248]
[1768348090737,7.61100199,144.59,144.54,2.67853736]
[1768348091222,0.69471868,144.59,144.55,4.83580984]
[1768348092596,7.61055553,144.6,144.56,4.83580984]
[1768348092796,0.69471868,144.59,144.52,0.70727248]